[Event "Azerbaijan Women Championship 2022"]
[Site "Baku"]
[Date "2022.05.20"]
[Round "4.3"]
[White "Beydullayeva, Govhar"]
[Black "Fataliyeva, Ulviyya"]
[Result "1/2-1/2"]
[ECO "D30"]
[WhiteElo "2384"]
[BlackElo "2348"]
[Annotator "TA"]
[PlyCount "100"]
[EventDate "2022.05.17"]
[EventType "tourn"]
[EventCountry "AZE"]
[SourceTitle "playchess.com"]
[Source "ChessBase"]
[SourceQuality "1"]
[TimeControl "40/5400+30:1800+30"]

{[%evp 9,100,21,32,22,29,31,42,29,32,29,39,37,29,25,20,29,40,37,33,15,26,18,23,19,29,6,26,26,35,7,6,16,9,16,27,16,16,16,16,16,54,27,105,101,100,102,106,106,101,103,129,112,228,218,218,124,129,125,116,120,119,120,116,121,211,0,65,0,205,205,341,291,282,276,283,272,255,245,270,2,12,3,5,5,76,76,76,77,77,78,72,-29983,86]} 1. d4 {[%emt 0:00:05]} d5 {[%emt 0:01:26]} 2. c4 {[%emt 0:00:04]} e6 {[%emt 0:00:03]} 3. Nf3 {[%emt 0:00:10]} a6 {[%emt 0:00:05]} 4. Bg5 {[%emt 0:00:44]} Be7 {[%emt 0:00:26]} 5. Bxe7 {[%emt 0:00:04]} Nxe7 {[%emt 0:00:04]} 6. Nbd2 {[%emt 0:00:02][%cal Bb1d2,Bd2e4,Be4d6][%mdl 32] D30: Queen's Gambit Declined: Systems without Nc3.} O-O {[%emt 0:01:30]} 7. g3 {[%emt 0:00:07]} Nd7 {[%emt 0:00:06]} 8. Bg2 {[%emt 0:00:04] White is slightly better.} c5 {[%emt 0:00:07]} 9. O-O {[%emt 0:00:44]} b5 {[%emt 0:00:27]} 10. cxd5 {[%emt 0:00:37]} Nxd5 {[%emt 0:00:36] [#]} 11. Ne4 $146 {[%emt 0:01:06]} ({Predecessor:} 11. Rc1 c4 12. Nb1 Bb7 13. b3 cxb3 14. axb3 Qb6 15. Qd2 a5 16. Rfe1 b4 17. e4 {0-1 (45) Anuj,S (2350)-Svane,R (2615) Chess.com INT 2021}) 11... c4 {[%emt 0:00:16]} 12. b3 {[%emt 0:00:03]} cxb3 {[%emt 0:00:04]} 13. axb3 {[%emt 0:00:05]} Bb7 {[%emt 0:00:04][%cal Od5e3]} 14. Nd6 {[%emt 0:01:30]} Bc6 {[%emt 0:00:05]} 15. Rc1 {[%emt 0:00:16]} Nb8 {[%emt 0:00:04]} 16. Ne4 {[%emt 0:04:25]} Nb4 {[%emt 0:00:16]} 17. Nc5 {[%emt 0:15:58]} (17. Ne5 {looks sharper.} Bd5 18. e3 N8c6 19. f4) 17... Ra7 {[%emt 0:01:26]} 18. Qd2 {[%emt 0:00:49]} a5 {[%emt 0:00:17]} 19. Rfd1 {[%emt 0:00:18]} N8a6 {[%emt 0:03:50]} 20. Ne5 {[%emt 0:10:11]} Bxg2 {[%emt 0:10:50]} 21. Kxg2 {[%emt 0:00:05]} f6 {[%emt 0:12:32]} 22. Nf3 {[%emt 0:02:36]} Nxc5 {[%emt 0:00:12]} 23. Rxc5 {[%emt 0:03:33]} Qb6 {[%emt 0:00:49]} 24. Rdc1 {[%emt 0:01:11]} Rd7 {[%emt 0:01:52]} 25. e4 {[%emt 0:07:04]} Qb7 {[%emt 0:18:46]} (25... h6 $11) 26. Qe2 $16 {[%emt 0:05:29]} Rb8 {[%emt 0:00:10]} 27. d5 $1 {[%emt 0:09:49]} exd5 {[%emt 0:03:01]} 28. Nd4 {[%emt 0:08:46][%cal Rc5b5]} Re8 {[%emt 0:02:12]} 29. Rxb5 {[%emt 0:03:13]} Qa7 {[%emt 0:00:31]} 30. Rcc5 {[%emt 0:00:47]} (30. Qh5 $2 g6 31. Qg4 Nd3 $19) 30... Rdd8 {[%emt 0:10:51]} (30... Rd6 $16) 31. Rxa5 $18 {[%emt 0:02:21]} Qd7 {[%emt 0:04:19]} 32. Rcb5 {[%emt 0:08:51]} ({Better is} 32. Ra4 $1 $18 {[%cal Ra4b4]} Rb8 33. Rb5 Rxb5 34. Qxb5 (34. Nxb5 Nc6 $16) 34... Qxb5 35. Nxb5) 32... Rxe4 $16 {[%emt 0:03:19]} 33. Qd2 {[%emt 0:00:17]} Nc6 {[%emt 0:03:01]} 34. Nxc6 {[%emt 0:00:29]} Qxc6 {[%emt 0:00:05]} 35. Rc5 {[%emt 0:00:05]} (35. Rxd5 $2 Re5 36. Qc1 Qxc1 $19) 35... Qb7 {[%emt 0:00:44]} 36. Rab5 $1 $36 {[%emt 0:00:22][%mdl 2048] White is in control.} (36. Rxd5 $2 Re5 37. Qb4 Qxb4 $19) 36... Qa8 {[%emt 0:00:19] [#]} (36... Qa6 $16) 37. Ra5 {[%emt 0:01:23]} (37. Rxd5 $2 Re5 38. Qa2 Qxa2 $19) (37. Rc7 $1 $18 Rg4 38. Ra5) 37... Qb7 $14 {[%emt 0:00:03]} 38. Rab5 {[%emt 0:00:10]} (38. Rxd5 $2 Re5 39. Qb4 Qxb4 $19) (38. Qc3 $14) 38... Qa8 $18 {[%emt 0:00:04] [#]} 39. Rc7 $1 {[%emt 0:09:22] Threatens to win with f3.} ({Don't blunder} 39. Rxd5 $2 Re5 40. Qa2 Qxa2 $19) 39... d4 {[%emt 0:05:18]} (39... Kh8 $142 40. Rbb7 Rg8 41. Qxd5 Re5) 40. Rbb7 {[%emt 0:00:00]} Rg4 {[%emt 0:00:00]} 41. Qe2 {[%emt 0:06:28]} Rg6 {[%emt 0:08:37]} 42. Qd3 {[%emt 0:04:00] And now h4 would win.} Kh8 {[%emt 0:06:05]} 43. h4 {[%emt 0:01:04] h5 is the strong threat.} f5 {[%emt 0:06:01]} 44. Kh2 $2 {[%emt 0:09:01]} (44. Qxf5 $18 d3 45. Qe5) 44... f4 $1 $11 {[%emt 0:07:31]} 45. Rd7 {[%emt 0:04:08]} fxg3+ $1 {[%emt 0:04:58]} 46. fxg3 {[%emt 0:00:05]} Rxd7 {[%emt 0:08:01]} (46... Qa2+ $1 $11 47. Kh3 Rf8) 47. Rxd7 $16 {[%emt 0:00:26]} Qa2+ {[%emt 0:00:22]} 48. Kh3 {[%emt 0:01:46][%cal Rd7d8]} Qa8 {[%emt 0:00:05][%cal Ra8h1] [#] Against Rd8+} 49. Qf3 {[%emt 0:06:46][%cal Rf3a8] Prevents Qh1+. Active counter play!} Qc8 50. Qe4 $2 {[%mdl 8192]} Qb8 $2 {Quite a comeback for Black.  Weighted Error Value: White=0.44/Black=0.16 (very precise)} (50... Qxd7+ {mates} 51. g4 Rc6 52. h5 Rc3+ 53. Kh2 Qc7+ 54. Kh1 Rc1+ 55. Kg2 Qc6 56. Qxc6 Rxc6 57. b4 d3 58. b5 Rc1 59. b6 d2 60. b7 Rb1 61. Kf3 d1=Q+ 62. Ke3 Qd5 63. Kf2 Qd3 64. b8=Q+ Rxb8 65. Kg1 Rb2 66. Kh1 Qf1#) 1/2-1/2

[Event "Azerbaijan Women Championship 2022"]
[Site "Baku"]
[Date "2022.05.20"]
[Round "4.4"]
[White "Allahverdiyeva, Ayan"]
[Black "Balajayeva, Khanim"]
[Result "1-0"]
[ECO "B76"]
[WhiteElo "2120"]
[BlackElo "2376"]
[Annotator "TA"]
[PlyCount "81"]
[EventDate "2022.05.17"]
[EventType "tourn"]
[EventCountry "AZE"]
[SourceTitle "playchess.com"]
[Source "ChessBase"]
[SourceQuality "1"]
[TimeControl "40/5400+30:1800+30"]

{[%evp 22,81,0,0,0,0,19,10,70,0,73,35,16,22,27,21,228,222,237,228,242,244,251,240,382,66,293,234,518,412,525,522,557,556,800,835,931,970,1266,1153,1401,1211,12841,2326,1907,1583,845,729,1215,1193,1143,1133,1097,697,1013,709,697,575,607,596,556,547]} 1. e4 {[%emt 0:06:46]} c5 {[%emt 0:00:10]} 2. Nf3 {[%emt 0:02:41]} d6 {[%emt 0:00:11]} 3. d4 {[%emt 0:00:03]} cxd4 {[%emt 0:00:10]} 4. Nxd4 {[%emt 0:00:01]} Nf6 {[%emt 0:00:13]} 5. Nc3 {[%emt 0:00:04]} g6 {[%emt 0:00:03]} 6. Be3 {[%emt 0:00:21]} Bg7 {[%emt 0:00:35]} 7. f3 {[%emt 0:00:06]} O-O {[%emt 0:00:51]} 8. Qd2 {[%emt 0:00:04]} Nc6 {[%emt 0:00:44]} 9. O-O-O {[%emt 0:00:07]} d5 {[%emt 0:07:44]} 10. Nxc6 {[%emt 0:02:29]} bxc6 {[%emt 0:01:08]} 11. Bh6 $1 {[%emt 0:08:29][%mdl 4] is recently more successful than 11.exd5.} Bxh6 {[%emt 0:20:58]} 12. Qxh6 {[%emt 0:00:04]} Rb8 {[%emt 0:01:52] B76: Sicilian Dragon: Yugoslav Attack, 9 g4 and 9 0-0-0.} 13. h4 {[%emt 0:15:46][%cal Bh2h4,Bh4h5][%mdl 32]} Qd6 {[%emt 0:11:10][%cal Ob8b2]} 14. Bc4 {[%emt 0:04:17] [#] Black must now prevent h5.} d4 $146 {[%emt 0:07:37] The position is equal.} (14... Qb4 15. Bb3 $14) ({Predecessor:} 14... Qg3 15. Bb3 e6 16. h5 Ba6 17. Rh3 Qxg2 18. Rdh1 Rb7 19. Nd1 Ne8 20. Ne3 Qe2 21. exd5 cxd5 22. Nxd5 {1-0 (37) Gokerkan,C (2466)-Van Dael,S (2390) Riga 2021}) 15. Ne2 {[%emt 0:08:32] White is more active.} (15. h5 $14 Qb4 16. Bb3 (16. Rxd4 Be6 $11) 16... dxc3 17. hxg6) 15... c5 {[%emt 0:00:59]} (15... e5 $11 {keeps the balance.}) 16. h5 {[%emt 0:03:34] Threatens to win with hxg6.} (16. Nf4 $5 {[%cal Rh4h5]}) 16... Be6 {[%emt 0:16:41]} 17. Bxe6 {[%emt 0:01:34]} Qxe6 {[%emt 0:00:01]} 18. b3 {[%emt 0:00:12]} Qe5 {[%emt 0:14:04] Black is now going downhill.} (18... Nxh5 $2 19. Nf4 Qf6 20. Nxh5 gxh5 21. Qxf6 (21. Rxh5 Qxh6+ 22. Rxh6 f6 $16) (21. Qxh5 Rfc8 $16) 21... exf6 22. Rxh5 $18) (18... Qd6 $1 $11) 19. hxg6 $18 {[%emt 0:06:31]} fxg6 {[%emt 0:00:03]} 20. Nf4 {[%emt 0:00:02][%cal Of4g6] aiming for Nxg6!} Rf7 {[%emt 0:00:18][%cal Oc5c4] [#]} 21. Nxg6 $1 {[%emt 0:00:25][%mdl 512]} Qc7 {[%emt 0:03:08]} (21... Qe6 22. Nf4) 22. Nf4 {[%emt 0:04:16]} Rb6 {[%emt 0:00:21]} (22... Qd6 $142 23. Qg5+ Rg7) 23. Qh4 $2 {[%emt 0:04:28]} (23. Qg5+ $18 Rg7 24. Qf5) 23... a5 $2 {[%emt 0:01:42]} (23... e5 $1 $14) 24. Rh3 {[%emt 0:00:54] Strongly threatening Rg3+.} a4 $2 {[%emt 0:01:05]} (24... e5) 25. Rg3+ {[%emt 0:00:13]} Kf8 {[%emt 0:00:03] [#]} 26. e5 $1 {[%emt 0:01:25][%cal Be4e5,Be5f6][%mdl 32] White is clearly winning.} axb3 {[%emt 0:02:18]} 27. axb3 {[%emt 0:00:14]} ({And not} 27. exf6 bxa2 28. Kd2 Rbxf6 $11) 27... Qa7 {[%emt 0:03:29]} 28. exf6 {[%emt 0:00:32]} Qa1+ {[%emt 0:00:43]} 29. Kd2 {[%emt 0:00:03] Threatening mate with Rg8+.} Qc3+ {[%emt 0:00:03]} 30. Ke2 {[%emt 0:00:14]} Qxc2+ {[%emt 0:03:14]} 31. Rd2 {[%emt 0:00:03] Intending Qg4 and mate.} Qxb3 {[%emt 0:00:14] [#]} 32. Qh6+ {[%emt 0:00:39]} (32. Qg4 $2 {leads to mate.} Qe3+ 33. Kf1 Rb1+) (32. Rg8+ $142 $3 {[%mdl 512]} Kxg8 33. Qg4+ Kh8 34. Qc8+ Rf8 35. Qxf8+ Qg8 36. Qxe7) 32... Ke8 {[%emt 0:00:03]} 33. Rg8+ {[%emt 0:01:06]} Kd7 {[%emt 0:00:03]} 34. Nd3 {[%emt 0:00:06][%cal Bf4d3,Bd3c5,Bc5e6,Be6d4][%mdl 32]} Qd5 {[%emt 0:01:00]} 35. Rg5 {[%emt 0:01:28][%cal Bg8g5,Bg5e5,Be5c5][%mdl 32]} Qe6+ {[%emt 0:03:43]} 36. Re5 {[%emt 0:00:54]} Qxf6 {[%emt 0:00:04]} 37. Nxc5+ {[%emt 0:00:52]} Kc7 {[%emt 0:00:21]} 38. Ne6+ {[%emt 0:03:41]} Kc8 {[%emt 0:01:49]} 39. Qxf6 {[%emt 0:05:11] White threatens Rc5+ and mate.} exf6 {[%emt 0:00:05]} 40. Rc5+ {[%emt 0:00:00]} Kb8 {[%emt 0:00:00]} 41. Nxd4 {[%emt 0:00:14] Weighted Error Value: White=0.46/Black=0.95} 1-0

[Event "Azerbaijan Women Championship 2022"]
[Site "Baku"]
[Date "2022.05.21"]
[Round "5.1"]
[White "Balajayeva, Khanim"]
[Black "Mammadova, Gulnar"]
[Result "1/2-1/2"]
[ECO "C89"]
[WhiteElo "2376"]
[BlackElo "2387"]
[Annotator "TA"]
[PlyCount "49"]
[EventDate "2022.05.17"]
[EventType "tourn"]
[EventCountry "AZE"]
[SourceTitle "playchess.com"]
[Source "ChessBase"]
[SourceQuality "1"]
[TimeControl "40/5400+30:1800+30"]

{[%evp 31,49,24,19,35,14,16,36,2,11,0,0,0,0,0,0,0,0,0,0,0]} 1. e4 {[%emt 0:00:07]} e5 {[%emt 0:00:20]} 2. Nf3 {[%emt 0:01:49]} Nc6 {[%emt 0:00:15]} 3. Bb5 {[%emt 0:01:45]} a6 {[%emt 0:01:00]} 4. Ba4 {[%emt 0:01:12]} Nf6 {[%emt 0:00:32]} 5. O-O {[%emt 0:03:10]} Be7 {[%emt 0:00:20]} 6. Re1 {[%emt 0:01:23]} b5 {[%emt 0:00:30]} 7. Bb3 {[%emt 0:01:31]} O-O {[%emt 0:00:50]} 8. c3 {[%emt 0:01:35]} d5 {[%emt 0:00:42]} 9. exd5 {[%emt 0:04:06]} Nxd5 {[%emt 0:00:14]} 10. Nxe5 {[%emt 0:01:46]} Nxe5 {[%emt 0:00:20]} 11. Rxe5 {[%emt 0:00:23]} c6 {[%emt 0:00:19]} 12. d4 {[%emt 0:03:54]} Bd6 {[%emt 0:00:34]} 13. Re1 {[%emt 0:00:52]} Qh4 {[%emt 0:00:40]} 14. g3 Qh3 {[%emt 0:03:00]} 15. Qf3 {[%emt 0:06:03]} Bg4 {[%emt 0:09:30]} 16. Qg2 {[%emt 0:01:20]} Qh5 {[%emt 0:00:39] [#] Hoping for ...Rae8.} 17. Be3 {[%emt 0:02:59] C89: Closed Ruy Lopez: Marshall Attack.} Rae8 {[%emt 0:02:24] And now ...Bf3 would win.} 18. Nd2 {[%emt 0:02:18] Inhibits Bf3.} Re7 {[%emt 0:02:12]} 19. Bxd5 {[%emt 0:04:53] White is slightly better.} cxd5 {[%emt 0:03:07] The position is equal.} 20. Bf4 {[%emt 0:02:23]} Bh3 $1 {[%emt 0:08:33]} 21. Qf3 {[%emt 0:00:54]} Bg4 {[%emt 0:00:16] A strong pair of Bishops.} 22. Qg2 {[%emt 0:00:52]} Bh3 $1 {[%emt 0:04:01]} 23. Qf3 {[%emt 0:02:16]} Bg4 {[%emt 0:00:11] [#]} 24. Qg2 $146 {[%emt 0:01:23]} ({Predecessor:} 24. Qd3 Be2 25. Rxe2 Qxe2 26. Qxe2 Rxe2 27. Bxd6 Rxd2 28. Bxf8 Kxf8 29. b4 Rc2 30. a4 Rxc3 31. axb5 axb5 {½-½ (37) Papp,G (2578)-Erdos,V (2640) Heviz 2012}) 24... Bh3 $1 {[%emt 0:00:05]} 25. Qf3 {[%emt 0:00:11] An even fight not without its subleties.  Weighted Error Value: White=0.05 (flawless) /Black=0.01 (flawless)} 1/2-1/2

[Event "Azerbaijan Women Championship 2022"]
[Site "Baku"]
[Date "2022.05.21"]
[Round "5.2"]
[White "Abdulla, Khayala"]
[Black "Allahverdiyeva, Ayan"]
[Result "1/2-1/2"]
[ECO "D02"]
[WhiteElo "2219"]
[BlackElo "2120"]
[Annotator "TA"]
[PlyCount "121"]
[EventDate "2022.05.17"]
[EventType "tourn"]
[EventCountry "AZE"]
[SourceTitle "playchess.com"]
[Source "ChessBase"]
[SourceQuality "1"]
[TimeControl "40/5400+30:1800+30"]

{[%evp 9,121,0,16,8,13,14,7,15,9,6,34,27,34,-5,-10,-11,0,0,0,0,0,0,0,2,40,33,66,67,58,64,60,66,81,72,57,45,31,26,18,17,14,18,15,0,47,30,30,30,30,22,22,17,57,64,66,50,75,81,89,35,56,18,24,22,107,107,176,154,120,0,0,0,220,227,381,347,314,188,179,163,80,36,47,28,80,0,0,0,0,0,0,0,0,0,0,0,0,0,0,0,0,0,0,0,0,0,0,0,0,0,0,0,0,0]} 1. d4 {[%emt 0:00:03]} Nf6 {[%emt 0:02:11]} 2. Nf3 {[%emt 0:00:17]} d5 {[%emt 0:00:29]} 3. Bf4 {[%emt 0:00:19]} c5 {[%emt 0:00:21]} 4. e3 {[%emt 0:00:22]} Nc6 {[%emt 0:00:15]} 5. Nbd2 {[%emt 0:00:40]} Bg4 {[%emt 0:16:46]} 6. h3 {[%emt 0:04:20] D02: 1 d4 d5 2 Nf3 sidelines, including 2...Nf6 3 g3 and 2...Nf6 3 Bf4.} Bh5 {[%emt 0:05:02]} 7. c3 {[%emt 0:04:35]} e6 {[%emt 0:05:39]} 8. Qb3 {[%emt 0:07:36]} Qc8 {[%emt 0:00:00]} 9. Ne5 {[%emt 0:03:47] 9.Be2 gains popularity.} c4 {[%emt 0:04:30] [#]} 10. Qa4 $146 {[%emt 0:01:11]} ({Predecessor:} 10. Qc2 Nxe5 11. Bxe5 Nd7 12. Bg3 Bg6 13. Qc1 b5 14. Be2 Be7 15. O-O O-O 16. Bf3 {0-1 (61) Kljako,D (2181)-Plenca,J (2339) Zupanja 2011}) 10... a6 {[%emt 0:00:05]} 11. Ndf3 {[%emt 0:10:28]} (11. g4 b5 12. Qd1) 11... b5 {[%emt 0:09:42][%cal Bb7b5,Bb5b4][%mdl 32]} 12. Qc2 {[%emt 0:00:53]} Be7 {[%emt 0:19:18]} 13. g4 {[%emt 0:09:14]} Bg6 {[%emt 0:00:04]} 14. Nxg6 {[%emt 0:00:15]} hxg6 {[%emt 0:00:07]} 15. Bg2 {[%emt 0:00:12]} b4 {[%emt 0:04:10]} 16. Nd2 {[%emt 0:04:08]} Nd7 {[%emt 0:00:07]} 17. Nxc4 {[%emt 0:11:08]} bxc3 {[%emt 0:09:12] Hoping for ...Nb4.} 18. Nd6+ {[%emt 0:11:09]} Bxd6 {[%emt 0:00:04]} 19. Bxd6 {[%emt 0:00:03]} cxb2 {[%emt 0:00:06]} 20. Qxb2 {[%emt 0:01:40] Rc1 is the strong threat.} Na5 $1 {[%emt 0:01:50]} 21. Rc1 {[%emt 0:02:32]} Nc4 {[%emt 0:01:07]} 22. Qb4 {[%emt 0:05:31]} a5 {[%emt 0:01:30]} 23. Qa4 {[%emt 0:00:49]} Qa6 {[%emt 0:02:53]} 24. Ba3 {[%emt 0:06:10]} Nxa3 {[%emt 0:04:23]} 25. Qxa3 {[%emt 0:00:04]} Qb5 {[%emt 0:00:08]} 26. Rc7 {[%emt 0:03:10]} Rb8 {[%emt 0:05:29]} (26... Qb4+ $11 27. Qc3 Ke7) 27. Kd2 {[%emt 0:03:52]} Qb2+ {[%emt 0:03:22]} 28. Qxb2 {[%emt 0:00:03]} Rxb2+ {[%emt 0:00:02]} 29. Kc3 {[%emt 0:00:19]} Rb8 {[%emt 0:00:56]} 30. Rc1 {[%emt 0:04:26]} Nb6 {[%emt 0:00:18]} 31. Bf1 {[%emt 0:02:06]} O-O {[%emt 0:00:33]} 32. Bb5 $36 {[%emt 0:00:49][%mdl 2048] White is pushing.} Nc8 {[%emt 0:02:07]} 33. Bd3 {[%emt 0:01:24] White is much more active.} Nd6 {[%emt 0:06:55] [#]} 34. Rc5 {[%emt 0:00:06]} ({White should try} 34. Kd2 $1 $16) 34... a4 {[%emt 0:00:14]} 35. Rb1 {[%emt 0:00:42]} Rxb1 {[%emt 0:01:38]} 36. Bxb1 $11 {[%emt 0:00:01][%mdl 4096] Endgame KRB-KRN} Rb8 {[%emt 0:01:25]} (36... f5 $1 $11 {keeps the balance.}) 37. Bd3 $16 {[%emt 0:01:28]} a3 {[%emt 0:00:16] [#]} (37... Ra8 $16) 38. Ra5 $1 $18 {[%emt 0:01:43]} Rb2 {[%emt 0:00:36]} 39. f3 {[%emt 0:01:45]} (39. Rxa3 $16 Rxf2 40. Ra8+ Kh7 41. a4) 39... Rxa2 $11 {[%emt 0:00:26]} 40. Ra6 {[%emt 0:00:00]} Ra1 $2 {[%emt 0:00:00]} 41. Rxd6 $18 {[%emt 0:04:32] And now Rd8+ would win. KRB-KR} Re1 $2 {[%emt 0:05:36]} (41... Rc1+ 42. Kb3 Kf8) 42. Ra6 {[%emt 0:02:26] Threatens to win with Ra8+.} Rxe3 {[%emt 0:00:08]} 43. h4 {[%emt 0:05:47]} ({Weaker is} 43. Rxa3 Kf8 44. Kb4 (44. Ra8+ Ke7 $16) 44... Rxf3 $16) (43. Ra8+ $142 Kh7 44. Rxa3) 43... Kf8 {[%emt 0:01:23]} 44. Rxa3 {[%emt 0:06:30] aiming for Kb4.} Rxf3 {[%emt 0:00:07]} 45. Ra8+ {[%emt 0:00:10]} Ke7 {[%emt 0:00:19]} 46. Rg8 {[%emt 0:02:17]} Rh3 {[%emt 0:10:02]} 47. Rh8 {[%emt 0:00:52]} (47. Rxg7 $16 Rxh4 48. Bxg6) 47... g5 $11 {[%emt 0:01:04] The position is equal.} 48. Rg8 {[%emt 0:06:11]} Rxh4 {[%emt 0:01:05]} ({But not} 48... gxh4 49. Rxg7 Kf6 50. Rh7 $14) 49. Be2 {[%emt 0:00:14]} g6 {[%emt 0:01:06]} 50. Kd2 {[%emt 0:00:55]} Rh3 {[%emt 0:00:40]} 51. Ra8 {[%emt 0:01:49]} Rg3 {[%emt 0:03:19]} 52. Ra7+ {[%emt 0:00:30]} Kf8 {[%emt 0:00:41]} 53. Ra4 {[%emt 0:00:58]} Ke7 {[%emt 0:00:47]} 54. Ke1 {[%emt 0:00:29]} f5 {[%emt 0:01:37]} 55. Kf2 {[%emt 0:00:35]} Rb3 {[%emt 0:00:04]} 56. Bf3 {[%emt 0:02:01]} Rb2+ {[%emt 0:00:34]} 57. Ke3 {[%emt 0:00:50]} Rb3+ {[%emt 0:01:17]} 58. Kf2 {[%emt 0:00:24]} Rb2+ {[%emt 0:00:02]} 59. Ke3 {[%emt 0:00:43]} Rb3+ {[%emt 0:00:24]} 60. Kf2 {[%emt 0:00:08]} Rb2+ {[%emt 0:00:12]} 61. Ke3 {[%emt 0:00:41] Weighted Error Value: White=0.12 (very precise) /Black=0.21 (precise)} 1/2-1/2

[Event "Azerbaijan Women Championship 2022"]
[Site "Baku"]
[Date "2022.05.21"]
[Round "5.3"]
[White "Hajiyeva, Laman"]
[Black "Beydullayeva, Govhar"]
[Result "1-0"]
[ECO "B22"]
[WhiteElo "1971"]
[BlackElo "2384"]
[Annotator "TA"]
[PlyCount "47"]
[EventDate "2022.05.17"]
[EventType "tourn"]
[EventCountry "AZE"]
[SourceTitle "playchess.com"]
[Source "ChessBase"]
[SourceQuality "1"]
[TimeControl "40/5400+30:1800+30"]

{[%evp 12,47,19,15,4,0,3,8,20,14,22,0,27,22,19,33,18,0,0,-24,48,33,29,46,51,0,59,-40,56,61,405,393,635,630,2172,2038,2716,2260]} 1. e4 {[%emt 0:00:06]} c5 {[%emt 0:05:39]} 2. c3 {[%emt 0:00:11]} d5 {[%emt 0:00:04]} 3. exd5 Qxd5 {[%emt 0:00:04]} 4. d4 {[%emt 0:00:24]} Nf6 {[%emt 0:00:04]} 5. Nf3 {[%emt 0:00:21]} e6 {[%emt 0:00:06]} 6. Na3 {[%emt 0:02:17][%cal Bb1a3,Ba3b5,Bb5d4][%mdl 32]} Nc6 {[%emt 0:02:20]} 7. Be3 {[%emt 0:05:37] is the new trend.} cxd4 {[%emt 0:00:40] [#] B22: Sicilian: 2 c3.} 8. Nb5 $1 {[%emt 0:01:00] Nc7+ is the strong threat.} Qd7 {[%emt 0:00:08] Against Nc7+} (8... Qd8 9. Nbxd4) 9. Nbxd4 {[%emt 0:01:42]} Be7 {[%emt 0:00:11] The position is equal.} 10. Bd3 Nd5 {[%emt 0:06:56]} 11. Bd2 {[%emt 0:12:05]} O-O {[%emt 0:06:56] [#]} 12. Qc2 $146 {[%emt 0:07:01]} ({Predecessor:} 12. O-O Nxd4 13. Nxd4 b6 14. Bb5 Qc7 15. Bc6 Bb7 16. Bxb7 Qxb7 17. c4 Nf6 18. Qe2 Rfd8 19. Nf3 Rac8 20. Rfe1 Nd7 21. Bg5 Nc5 22. Bxe7 Qxe7 23. Rad1 h6 {½-½ (23) Plenca,J (2462)-Beerdsen,T (2491) Split 2019}) 12... h6 {[%emt 0:07:58]} 13. Nxc6 {[%emt 0:08:32]} bxc6 {[%emt 0:00:49]} 14. O-O-O {[%emt 0:06:24][%cal Ba1d1,Bd1e1,Be1e5,Be5e6][%mdl 32]} Qc7 {[%emt 0:01:37]} 15. h4 {[%emt 0:07:15]} f5 {[%emt 0:16:00]} ({Better is} 15... Rb8 $11) 16. Rde1 {[%emt 0:06:20][%cal Og2g4]} Bf6 {[%emt 0:00:37]} 17. g4 {[%emt 0:11:38]} fxg4 {[%emt 0:07:48]} 18. Ng5 {[%emt 0:04:59]} (18. Bh7+ $1 $14 Kh8 19. Ng5 $1) 18... Be5 {[%emt 0:07:00]} (18... hxg5 $11 19. hxg5 Be5 20. Bh7+ Kf7) 19. Bh7+ $14 {[%emt 0:06:49]} Kh8 {[%emt 0:00:03]} 20. Bg8 $1 {[%emt 0:01:37][%csl Gg5,Gg8][%cal Rc2h7]} Rf5 $2 {[%emt 0:04:09][%mdl 8192] [#] This move loses the game for Black.} (20... Nf6 $1 $14 21. Bxe6 (21. Nxe6 Bxe6 22. Bxe6 Qd6 $11) 21... Bf4) 21. Rxe5 $1 $18 {[%emt 0:05:07]} ({Not} 21. Bxe6 Bxe6 22. Nxe6 Qf7 $17) 21... Bd7 {[%emt 0:17:53] [#]} (21... Qxe5 22. Nf7+ Kxg8 23. Nxe5 Rxe5) 22. Bxe6 $1 {[%emt 0:04:44] White is clearly winning.} Bxe6 {[%emt 0:03:31]} (22... Qxe5 23. Bxd7) 23. Rxe6 {[%emt 0:01:18]} Raf8 {[%emt 0:02:02] [#]} 24. Qxf5 $3 {[%emt 0:00:41][%mdl 512] Weighted Error Value: White=0.07 (flawless) /Black=0.81} 1-0